Workbook

Sheet 2025年12月年初预算
A1: 陆 丰 市 2025 年 12 月 财 政 预 算 收 入 完 成 情 况 表
A2: 2025-12-31 | L2: 单位：万元
B3: 年 度 | C3: 累 计 | D3: 占 年 | E3: 上 年 | F3: 比上年 | G3: 比上年 | H3: 本 月 | I3: 上 年 | J3: 比上年 | K3: 比上年
A4: 收 入 项 目 | B4: 预 算 | C4: 完 成 | D4: 预 算 | E4: 同 期 | F4: 同期增 | G4: 同期增 | H4: 完 成 | I4: 同 月 | J4: 同月增 | K4: 同月增 | L4: 备 注
B5: 数 | C5: 数 | D5: % | E5: 完 成 | F5: 减额 | G5: (减)% | H5: 数 | I5: 完 成 | J5: 减额 | K5: (减)%
A6: （一）税收收入 | B6: =SUM(B7:B20) -> 58000 | C6: =SUM(C7:C20) -> 87365 | D6: =IF(B6=0,"",C6/B6*100) -> 151 | E6: =SUM(E7:E20) -> 51612 | F6: =C6-E6 -> 35753 | G6: =IF(E6=0,"",F6/E6*100) -> 69 | H6: =H7+H8+H9+H10+H11+H12+H13+H14+H15+H16+H17+H18+H19+H20 -> 11222 | I6: =SUM(I7:I20) -> 7533 | J6: =H6-I6 -> 3689 | K6: =IF(I6=0,"",J6/I6*100) -> 49
A7: 1、增值税 | B7: 15480 | C7: 33860 | D7: 219 | E7: 13819 | F7: 20041 | G7: 145 | H7: =+C7-'[1]2025年11月'!C7 -> 4349 | I7: =+E7-'[1]2025年11月'!E7 -> 359 | J7: 3990 | K7: 1111
A8: 2、企业所得税 | B8: 7110 | C8: 17823 | D8: 251 | E8: 6349 | F8: 11474 | G8: 181 | H8: =+C8-'[1]2025年11月'!C8 -> 323 | I8: =+E8-'[1]2025年11月'!E8 -> 128 | J8: 195 | K8: 152
A9: 3、个人所得税 | B9: 1360 | C9: 2600 | D9: 191 | E9: 1213 | F9: 1387 | G9: 114 | H9: =+C9-'[1]2025年11月'!C9 -> 315 | I9: =+E9-'[1]2025年11月'!E9 -> 163 | J9: 152 | K9: 93
A10: 4、资源税 | B10: 80 | C10: 15 | D10: 19 | E10: 69 | F10: -54 | G10: -78 | H10: =+C10-'[1]2025年11月'!C10 -> 4 | I10: =+E10-'[1]2025年11月'!E10 -> 4 | J10: 0 | K10: 0
A11: 5、城市维护建设税 | B11: 5680 | C11: 5782 | D11: 102 | E11: 5071 | F11: 711 | G11: 14 | H11: =+C11-'[1]2025年11月'!C11 -> 615 | I11: =+E11-'[1]2025年11月'!E11 -> 603 | J11: 12 | K11: 2
A12: 6、房产税 | B12: 4530 | C12: 3855 | D12: 85 | E12: 4047 | F12: -192 | G12: -5 | H12: =+C12-'[1]2025年11月'!C12 -> 3090 | I12: =+E12-'[1]2025年11月'!E12 -> 1643 | J12: 1447 | K12: 88
A13: 7、印花税 | B13: 1810 | C13: 1556 | D13: 86 | E13: 1619 | F13: -63 | G13: -4 | H13: =+C13-'[1]2025年11月'!C13 -> 65 | I13: =+E13-'[1]2025年11月'!E13 -> 73 | J13: -8 | K13: -11
A14: 8、城镇土地使用税 | B14: 2140 | C14: 1660 | D14: 78 | E14: 1909 | F14: -249 | G14: -13 | H14: =+C14-'[1]2025年11月'!C14 -> 1181 | I14: =+E14-'[1]2025年11月'!E14 -> 1046 | J14: 135 | K14: 13
A15: 9、土地增值税 | B15: 4840 | C15: 7762 | D15: 160 | E15: 4319 | F15: 3443 | G15: 80 | H15: =+C15-'[1]2025年11月'!C15 -> 607 | I15: =+E15-'[1]2025年11月'!E15 -> 332 | J15: 275 | K15: 83
A16: 10、车船使用税 | B16: 2080 | C16: 1814 | D16: 87 | E16: 1861 | F16: -47 | G16: -3 | H16: =+C16-'[1]2025年11月'!C16 -> 154 | I16: =+E16-'[1]2025年11月'!E16 -> 158 | J16: -4 | K16: -3
A17: 11、环保税 | B17: 300 | C17: 1583 | D17: 528 | E17: 270 | F17: 1313 | G17: 486 | H17: =+C17-'[1]2025年11月'!C17 -> 4 | I17: =+E17-'[1]2025年11月'!E17 -> 4 | J17: 0 | K17: 0
A18: 12、耕地占用税 | B18: 6000 | C18: 3401 | D18: 57 | E18: 5034 | F18: -1633 | G18: -32 | H18: =+C18-'[1]2025年11月'!C18 -> 0 | I18: =+E18-'[1]2025年11月'!E18 -> 1364 | J18: -1364 | K18: -100
A19: 13、契 税 | B19: 6590 | C19: 5654 | D19: 86 | E19: 6032 | F19: -378 | G19: -6 | H19: =+C19-'[1]2025年11月'!C19 -> 515 | I19: =+E19-'[1]2025年11月'!E19 -> 1656 | J19: -1141 | K19: -69
A20: 14、其他税收收入 | B20: 0 | C20: 0 | E20: 0 | F20: 0 | H20: =+C20-'[1]2025年11月'!C20 -> 0 | I20: =+E20-'[1]2025年10月'!E20 -> 0 | J20: 0
A21: （二）非税收入 | B21: =SUM(B22:B29) -> 95495 | C21: =SUM(C22:C29) -> 101112 | D21: 106 | E21: =E22+E23+E24+E25+E26+E27+E28+E29 -> 94574 | F21: 6538 | G21: 7 | H21: 9162 | I21: 19110 | J21: -9948 | K21: -52
A22: 1、专项收入 | B22: 3990 | C22: 5427 | D22: 136 | E22: 25554 | F22: -20127 | G22: -79 | H22: =+C22-'[1]2025年11月'!C22 -> 539 | I22: =+E22-'[1]2025年11月'!E22 -> 5492 | J22: -4953 | K22: -90
A23: 2、行政事业性收费收入 | B23: 10860 | C23: 5210 | D23: 48 | E23: 21434 | F23: -16224 | G23: -76 | H23: =+C23-'[1]2025年11月'!C23 -> 1073 | I23: =+E23-'[1]2025年11月'!E23 -> 579 | J23: 494 | K23: 85
A24: 3、罚没收入 | B24: 11860 | C24: 5623 | D24: 47 | E24: 22569 | F24: -16946 | G24: -75 | H24: =+C24-'[1]2025年11月'!C24 -> 3429 | I24: =+E24-'[1]2025年11月'!E24 -> 7276 | J24: -3847 | K24: -53
A25: 4、国有资源（资产）有偿使用收入 | B25: 54365 | C25: 76209 | D25: 140 | E25: 8356 | F25: 67853 | G25: 812 | H25: =+C25-'[1]2025年11月'!C25 -> 3637 | I25: =+E25-'[1]2025年11月'!E25 -> 5114 | J25: -1477 | K25: -29
A26: 5、政府住房基金收入 | B26: 300 | C26: 324 | D26: 108 | E26: 402 | F26: -78 | G26: -19 | H26: =+C26-'[1]2025年11月'!C26 -> 40 | I26: =+E26-'[1]2025年11月'!E26 -> 60 | J26: -20 | K26: -33
A27: 6、捐赠收入 | B27: 10660 | C27: 6959 | D27: 65 | E27: 11082 | F27: -4123 | G27: -37 | H27: =+C27-'[1]2025年11月'!C27 -> 259 | I27: =+E27-'[1]2025年11月'!E27 -> 437 | J27: -178 | K27: -41
A28: 7、其他收入 | B28: 3460 | C28: 1356 | D28: 39 | E28: 5177 | F28: -3821 | G28: -74 | H28: =+C28-'[1]2025年11月'!C28 -> 185 | I28: =+E28-'[1]2025年11月'!E28 -> 152 | J28: 33 | K28: 22
A29: 8、国有资本经营收入 | B29: 0 | C29: 4 | F29: 4 | H29: =+C29-'[1]2025年11月'!C29 -> 0 | I29: =+E29-'[1]2025年11月'!E29 -> 0 | J29: 0
A30: 一、一般公共预算收入 | B30: =B6+B21 -> 153495 | C30: =C6+C21 -> 188477 | D30: 123 | E30: 146186 | F30: 42291 | G30: 29 | H30: 20384 | I30: 26643 | J30: -6259 | K30: -23
A31: 二、政府性基金预算收入小计 | B31: 166318 | C31: 30856 | D31: 19 | E31: 82309 | F31: -51453 | G31: -63 | H31: =+C31-'[1]2025年11月'!C31 -> 10606 | I31: =+E31-'[1]2025年11月'!E31 -> 37591 | J31: -26985 | K31: -72
A32: 其中：国有土地使用权出让收入 | B32: 160198 | C32: 25747 | D32: 16 | E32: 73853 | F32: -48106 | G32: -65 | H32: =+C32-'[1]2025年11月'!C32 -> 8525 | I32: =+E32-'[1]2025年11月'!E32 -> 36856 | J32: -28331 | K32: -77
A33: 三、国有资本经营收入小计 | B33: 7537 | C33: 500 | D33: 7 | E33: 500 | F33: 0 | G33: 0 | H33: =+C33-'[1]2025年11月'!C33 -> 0 | I33: =+E33-'[1]2025年11月'!E33 -> 0 | J33: 0
A34: 收入合计 | B34: =B30+B31+B33 -> 327350 | C34: =C30+C31+C33 -> 219833 | D34: =C34/B34*100 -> 67 | E34: 228995 | F34: -9162 | G34: -4 | H34: 30990 | I34: 64234 | J34: -33244 | K34: -52
L35: 陆丰市财政局国库股
